fUST/lending_fUST_20251227
["ID","MTS","AMOUNT","RATE_DAILY","PERIOD"]
[399901827,1766837630025,928.3449749,0.00030134,120]
[399901830,1766837643870,500.0,0.00013699,2]
[399901831,1766837643922,1000.0,0.00014247,2]
[399901832,1766837646173,490.7772799,0.00030134,120]
[399901833,1766837647533,500.0,0.00013273,2]
[399901834,1766837647756,500.0,0.00013273,2]
[399901836,1766837838804,5000.0,0.0001439,2]
[399901837,1766837863267,526.88199564,0.0001439,2]
[399901856,1766838333147,-263.42,0.000144,2]
[399901857,1766838333173,-104.47859846,0.000147,2]
[399901858,1766838351234,-158.94140154,0.000147,2]
[399901859,1766838351257,-485.78259846,0.00015,2]
[399901862,1766838398303,256.287744,0.00013699,2]
[399901863,1766838437086,-252.88,0.000144,2]
[399901864,1766838437113,-252.88,0.000147,2]
[399901865,1766838437135,-150.21740154,0.00015,2]
[399901866,1766838437160,-252.88,0.00015,2]
[399901867,1766838437182,-252.88,0.000154,2]
[399901868,1766838437205,-252.88,0.000157,2]
[399901869,1766838437227,-252.88,0.00016,2]
[399901870,1766838437250,-252.88,0.000163,2]
[399901871,1766838437272,-213.88804038,0.0001657,2]
[399901872,1766838437295,-252.88,0.000166,2]
[399901873,1766838437318,-160.203104,0.00016773,2]
[399901874,1766838437341,-252.88,0.00017,2]
[399901875,1766838437362,-252.88,0.000173,2]
[399901876,1766838437386,-252.88,0.000176,2]
[399901877,1766838437407,-173.476197,0.00017707,7]
[399901878,1766838437430,-252.88,0.000179,2]
[399901879,1766838437452,-169.77438264,0.00018139,2]
[399901884,1766838557090,-192.19,0.000144,2]
[399901885,1766838572083,-172.40751019,0.000147,2]
[399901887,1766838626151,151.01,0.000144,2]
[399901925,1766838632477,-151.01,0.00015,2]
[399901927,1766838632488,-183.5410642,0.000154,2]
[399901929,1766838632500,-458.4589358,0.000154,2]
[399901931,1766838632510,-151.01,0.000156,2]
[399901933,1766838632520,-151.01,0.000163,2]
[399901935,1766838632530,-151.01,0.000169,2]
[399901936,1766838632539,-151.01,0.000175,2]
[399901938,1766838632550,-102.95,0.00018139,2]
[399901955,1766838638531,-563.23558516,0.00018139,2]
[399901957,1766838638542,-209.61027957,0.0001817,2]
[399901959,1766838638551,-37.29073034,0.000182,2]
[399901961,1766838638563,-113.71926966,0.000182,2]
[399901962,1766838638573,-165.84213996,0.000184,2]
[399901964,1766838638583,-144.94835373,0.00018498,2]
[399901966,1766838638594,-451.05164627,0.00018498,2]
[399901968,1766838638604,-165.87828744,0.00018499,2]
[399901970,1766838638613,-300.0,0.00018499,2]
[399901971,1766838638623,-1104.0,0.00018499,2]
[399901973,1766838638632,-500.0,0.00018499,2]
[399901975,1766838638642,-500.0,0.00018499,2]
[399901977,1766838638651,-500.0,0.00018499,2]
[399901979,1766838638660,-579.43174946,0.00018499,2]
[399901981,1766838638670,-500.0,0.00018499,2]
[399901982,1766838638679,-500.0,0.00018499,2]
[399901984,1766838638688,-500.0,0.00018499,2]
[399901986,1766838638698,-500.0,0.00018499,2]
[399901988,1766838638708,-500.0,0.00018499,2]
[399901990,1766838638718,-35.70247407,0.00018499,2]
[399901992,1766838638730,-464.29752593,0.00018499,2]
[399901993,1766838638739,-374.83624708,0.00018499,2]
[399901994,1766838638748,-1132.37718443,0.000185,2]
[399901995,1766838638760,-1070.74588555,0.000185,2]
[399901996,1766838638786,-570.31992125,0.000185,2]
[399901997,1766838638798,-138085.68049195,0.000185,2]
[399901998,1766838638811,-3206.20753038,0.000185,2]
[399902012,1766838645027,-9677.8185,0.000185,2]
[399902174,1766838646801,-972.0,0.000185,2]
[399902650,1766838672213,179.74,0.000144,2]
[399902672,1766838940613,150.0,0.00012981,2]
[399902673,1766838941033,150.0,0.00014162,2]
[399902674,1766839007919,71026.18062132,0.000141,2]
[399902675,1766839521345,197.3486818,0.0001439,2]
[399902676,1766839534099,185.52,0.0001439,2]
[399902677,1766839547111,-185.56,0.000144,2]
[399902678,1766839547133,-216.66030377,0.00014449,2]
[399902679,1766839547155,-185.56,0.000147,2]
[399902680,1766839547179,-185.56,0.00015,2]
[399902681,1766839547200,-185.56,0.000154,2]
[399902682,1766839547222,-185.56,0.000157,2]
[399902683,1766839547244,-185.56,0.00016,2]
[399902684,1766839547273,-20.28560614,0.000163,2]
[399902685,1766839559137,-165.27439386,0.000163,2]
[399902686,1766839559160,-2.49479633,0.00016449,2]
[399902687,1766839627125,-253.16436211,0.00016449,2]
[399902688,1766839627150,-492.8572652,0.000176,2]
[399902689,1766839627175,-261.1829582,0.00017667,2]
[399902690,1766839628103,-107.82296636,0.00017667,2]
[399902691,1766839628128,-294.65801312,0.00018449,2]
[399902692,1766839628152,-300.0,0.00018498,2]
[399902693,1766839628177,-1200.0,0.00018498,2]
[399902694,1766839628202,-300.0,0.00018498,2]
[399902695,1766839628227,-278.8563118,0.00018499,2]
[399902696,1766839637122,-159.58,0.000144,2]
[399902697,1766839637146,-159.58,0.000147,2]
[399902698,1766839637168,-159.58,0.00015,2]
[399902699,1766839637191,-159.58,0.000154,2]
[399902700,1766839637212,-65.8286818,0.000157,2]
[399902703,1766839766089,-151.56,0.000144,2]
[399902704,1766839767077,-201.32075426,0.0001465,2]
[399902705,1766839767100,-135.12686176,0.000147,2]
[399902706,1766839823805,152.54,0.000144,2]
[399902729,1766839831743,-152.54,0.000149,2]
[399902731,1766839831754,-152.54,0.000153,2]
[399902733,1766839831764,-152.54,0.000158,2]
[399902735,1766839831774,-152.54,0.000162,2]
[399902737,1766839831784,-237.55849003,0.0001665,2]
[399902738,1766839831794,-152.54,0.000167,2]
[399902739,1766839831803,-152.54,0.000172,2]
[399902740,1766839831813,-152.54,0.000176,2]
[399902741,1766839831823,-152.54,0.000181,2]
[399902742,1766839831833,-500.0,0.00018488,2]
[399902743,1766839831843,-300.0,0.00018498,2]
[399902744,1766839831853,-1200.0,0.00018498,2]
[399902745,1766839831863,-221.1436882,0.00018499,2]
[399902746,1766839831873,-407.12033876,0.00018499,2]
[399902776,1766839837823,-92.87966124,0.00018499,2]
[399902778,1766839837833,-500.0,0.00018499,2]
[399902780,1766839837843,-500.0,0.00018499,2]
[399902781,1766839837853,-500.0,0.00018499,2]
[399902783,1766839837862,-500.0,0.00018499,2]
[399902785,1766839837872,-500.0,0.00018499,2]
[399902787,1766839837882,-407.12033876,0.00018499,2]
[399902987,1766839840071,-92.87966124,0.00018499,2]
[399902989,1766839840082,-182.82448224,0.00018499,2]
[399903555,1766839845805,-317.17551776,0.00018499,2]
[399903557,1766839845815,-375.97815632,0.00018499,2]
[399903559,1766839845826,-124.02184368,0.00018499,2]
[399903561,1766839845835,-500.0,0.00018499,2]
[399903563,1766839845846,-500.0,0.00018499,2]
[399903565,1766839845856,-500.0,0.00018499,2]
[399903567,1766839845865,-152.54,0.000186,2]
[399903569,1766839845875,-503.16660008,0.00018611,2]
[399903571,1766839845885,-273.79622579,0.0001865,2]
[399903573,1766839845894,-2043.63932236,0.00018826,2]
[399903575,1766839845904,-168.0,0.00018896,2]
[399903577,1766839845913,-152.54,0.00019,2]
[399903579,1766839845923,-168.0,0.00019005,2]
[399903581,1766839845932,-168.0,0.00019012,2]
[399903584,1766839845945,-353.75342512,0.00019073,2]
[399903586,1766839845958,-246.24657488,0.00019073,2]
[399903588,1766839845967,-168.0,0.00019096,2]
[399903590,1766839845977,-168.0,0.00019189,2]
[399903592,1766839845987,-453.27019438,0.00019448,2]
[399903594,1766839845996,-301.86414574,0.00019449,2]
[399903596,1766839846009,-739.80252093,0.00019449,2]
[399903598,1766839846019,-152.54,0.000195,2]
[399903600,1766839846029,-2691.33829364,0.000196,2]
[399904704,1766839873785,150.57,0.000144,2]
[399904705,1766839878127,497.97,0.0001439,2]
[399904706,1766839940787,152.46,0.000144,2]
[399904707,1766840283936,500.0,0.00013273,2]
[399904709,1766840300770,500.0,0.00030134,120]
[399904710,1766840373239,510.0,0.00030136,120]
[399904711,1766840752146,-151.42,0.000144,2]
[399904712,1766840752170,-151.42,0.000147,2]
[399904713,1766840752192,-151.42,0.00015,2]
[399904714,1766840752212,-191.61318691,0.00015155,2]
[399904715,1766840752234,-151.42,0.000154,2]
[399904716,1766840752256,-151.42,0.000157,2]
[399904717,1766840752282,-1917.45084205,0.0001576,2]
[399904718,1766840826078,-1386.80602095,0.0001576,2]
[399904719,1766840826102,-323.83458443,0.00017009,2]
[399904720,1766840864094,150.0,0.00012922,2]
[399904721,1766840864518,150.0,0.00014097,2]
[399904722,1766840934957,150.0,0.00012883,2]
[399904723,1766840935395,150.0,0.00014055,2]
[399904724,1766840953242,-150.0,0.00015272,2]
[399904725,1766840957369,151.42,0.000144,2]
[399904726,1766840957745,151.42,0.000148,2]
[399904727,1766840958156,151.42,0.000151,2]
[399904728,1766840958582,151.42,0.000155,2]
[399904729,1766840964129,-151.42,0.000159,2]
[399904730,1766840964152,-151.42,0.000162,2]
[399904731,1766840964177,-150.0,0.00016446,2]
[399904732,1766840964200,-151.42,0.000166,2]
[399904733,1766841003124,150.0,0.00012903,2]
[399904734,1766841004017,150.0,0.00014077,2]
[399904735,1766841004461,150.0,0.0001525,2]
[399904736,1766841004949,150.0,0.00016423,2]
[399904737,1766841016604,508.4617314,0.00013273,2]
[399904738,1766841019502,153.73,0.000144,2]
[399904739,1766841019892,153.73,0.000148,2]
[399904740,1766841020283,153.73,0.000153,2]
[399904741,1766841020777,153.73,0.000157,2]
[399904742,1766841021151,153.73,0.000162,2]
[399904743,1766841021549,153.73,0.000166,2]
[399904767,1766841031745,-465.60265351,0.00016839,2]
[399904770,1766841031757,-1534.39734649,0.00016839,2]
[399904771,1766841031767,-431.74666908,0.00017009,2]
[399904773,1766841031776,-153.73,0.000171,2]
[399904775,1766841031786,-226.10356055,0.00017155,2]
[399904777,1766841031795,-300.0,0.00017298,2]
[399904778,1766841031805,-300.0,0.00017298,2]
[399904779,1766841031814,-300.0,0.00017298,2]
[399904780,1766841031824,-375.52426533,0.00017298,2]
[399904781,1766841031835,-824.47573467,0.00017298,2]
[399904782,1766841031845,-79.7180135,0.00017298,2]
[399904783,1766841031856,-220.2819865,0.00017298,2]
[399904784,1766841031866,-425.82534972,0.00017299,2]
[399904785,1766841031876,-259.122648,0.00017299,2]
[399904791,1766841037766,-190.78092317,0.00016924,2]
[399904792,1766841037775,-297.79444104,0.00017298,2]
[399904793,1766841037819,-45.51945286,0.00017298,2]
[399904794,1766841037829,-500.0,0.00017298,2]
[399904795,1766841037839,-500.0,0.00017298,2]
[399904796,1766841037849,-500.0,0.00017298,2]
[399904797,1766841037858,-398.86061622,0.00017298,2]
[399904798,1766841037868,-500.0,0.00017298,2]
[399904799,1766841037878,-500.0,0.00017298,2]
[399904800,1766841037887,-121.36432791,0.00017298,2]
[399904805,1766841039958,-378.63567209,0.00017298,2]
[399904806,1766841039968,-500.0,0.00017298,2]
[399904807,1766841039978,-223.00282905,0.00017298,2]
[399904808,1766841039987,-500.0,0.00017298,2]
[399904809,1766841039997,-500.0,0.00017298,2]
[399904810,1766841040007,-500.0,0.00017298,2]
[399904811,1766841040016,-500.0,0.00017298,2]
[399904812,1766841040026,-500.0,0.00017298,2]
[399904813,1766841040035,-500.0,0.00017298,2]
[399904814,1766841040045,-500.0,0.00017298,2]
[399904815,1766841040055,-500.0,0.00017298,2]
[399904816,1766841040065,-500.0,0.00017298,2]
[399904817,1766841040076,-500.0,0.00017298,2]
[399904818,1766841040088,-450.0,0.00017298,2]
[399904819,1766841040098,-10198.3811076,0.00017299,2]
[399904833,1766841046094,-23858.45930682,0.00017299,2]
[399904834,1766841046104,-153.73,0.000175,2]
[399904835,1766841046114,-150.0,0.00017621,2]
[399904836,1766841046126,-151.0,0.00017697,2]
[399904837,1766841046136,-151.0,0.00017697,2]
[399904838,1766841046146,-153.73,0.00018,2]
[399904839,1766841046156,-1000.0,0.000181,2]
[399904840,1766841046167,-151.0,0.000181,2]
[399904841,1766841046177,-729.5094685,0.00018173,2]
[399904842,1766841046188,-153.73,0.000184,2]
[399904843,1766841046198,-453.56475035,0.00018415,5]
[399904844,1766841046208,-420.0,0.00018888,2]
[399904845,1766841046218,-153.73,0.000189,2]
[399904846,1766841046228,-225.12148934,0.00018924,2]
[399904847,1766841046238,-381.0,0.00018981,2]
[399904848,1766841046249,-400.0,0.000191,2]
[399904849,1766841046262,-1362.42621491,0.00019208,2]
[399904850,1766841046272,-153.73,0.000193,2]
[399904851,1766841046283,-168.0,0.00019332,2]
[399904852,1766841046293,-416.0,0.00019498,2]
[399904853,1766841046305,-168.0,0.00019516,2]
[399904854,1766841046315,-1041.66666667,0.00019538,2]
[399904855,1766841046325,-308.66170636,0.000196,2]
[399904856,1766841046335,-150.0,0.00019617,2]
[399904857,1766841046345,-500.0,0.00019648,2]
[399904858,1766841046355,-500.0,0.00019648,2]
[399904859,1766841046365,-318.99429822,0.00019648,2]
[399904860,1766841046375,-227.73839673,0.00019648,2]
[399904861,1766841046385,-362.97445963,0.00019648,2]
[399904862,1766841046395,-6488.07701564,0.00019649,2]
[399904863,1766841070029,150.0,0.00012902,2]
[399904864,1766841070447,150.0,0.00014075,2]
[399904865,1766841070867,37.01012942,0.00015248,2]
[399904866,1766841070894,112.98987058,0.00015248,2]
[399904867,1766841071322,150.0,0.00016421,2]
[399904868,1766841074217,151.62,0.000144,2]
[399904869,1766841074628,151.62,0.000148,2]
[399904870,1766841075031,151.62,0.000153,2]
[399904871,1766841075405,151.62,0.000157,2]
[399904872,1766841075801,151.62,0.000162,2]
[399904873,1766841076179,151.62,0.000166,2]
[399904874,1766841080157,500.0,0.00013273,2]
[399904875,1766841083491,500.0,0.00013273,2]
[399904886,1766841134509,500.0,0.00013273,2]
[399904887,1766841135962,153.31,0.000144,2]
[399904888,1766841136347,153.31,0.000149,2]
[399904889,1766841136784,153.31,0.000155,2]
[399904890,1766841137233,153.31,0.00016,2]
[399904891,1766841137650,153.31,0.000166,2]
[399904892,1766841141393,150.0,0.0001306,2]
[399904893,1766841141865,150.0,0.00014247,2]
[399904894,1766841142300,150.0,0.00015435,2]
[399904895,1766841142724,150.0,0.00016622,2]
[399904896,1766841203075,500.0,0.00013273,2]
[399904897,1766841203131,500.0,0.00013821,2]
[399904898,1766841205364,500.0,0.00013273,2]
[399904900,1766841206122,500.0,0.00013273,2]
[399904901,1766841206155,500.0,0.00013821,2]
[399904902,1766841209589,150.0,0.00012958,2]
[399904903,1766841209639,270.52,0.0001,2]
[399904904,1766841210022,150.0,0.00014136,2]
[399904905,1766841212106,270.52,0.000102,2]
[399904906,1766841214578,270.52,0.000104,2]
[399904907,1766841217069,270.52,0.000106,2]
[399904908,1766841219628,270.52,0.000108,2]
[399904909,1766841222098,270.52,0.00011,2]
[399904910,1766841246117,500.0,0.00013273,2]
[399904911,1766841246170,500.0,0.00013821,2]
[399904912,1766841257446,500.0,0.00013273,2]
[399904913,1766841284743,150.0,0.00012968,2]
[399904914,1766841285312,150.0,0.00014147,2]
[399904915,1766841356051,150.0,0.00012953,2]
[399904916,1766841356547,150.0,0.0001413,2]
[399904917,1766841416416,243.473356,0.00013699,2]
[399904918,1766841425611,150.0,0.00012944,2]
[399904919,1766841426035,150.0,0.00014121,2]
[399904920,1766841427299,500.0,0.00013273,2]
[399904921,1766841427355,1000.0,0.00013821,2]
[399904922,1766841427581,500.0,0.00013273,2]
[399904923,1766841427638,500.0,0.00013821,2]
[399904926,1766841435599,1774.7941143,0.0001439,2]
[399904927,1766841494065,150.0,0.0001292,2]
[399904928,1766841494494,150.0,0.00014094,2]
[399904930,1766841547187,500.0,0.00013273,2]
[399904932,1766841561475,150.0,0.00012929,2]
[399904933,1766841562005,150.0,0.00014105,2]
[399904934,1766841606621,500.0,0.00013273,2]
[399904935,1766841607688,164.0,0.000301,120]
[399904939,1766841627460,150.0,0.00012954,2]
[399904940,1766841627920,150.0,0.00014131,2]
[399904941,1766841695073,150.0,0.00012924,2]
[399904942,1766841695514,150.0,0.00014099,2]
[399904943,1766841760001,150.0,0.00012931,2]
[399904945,1766841824372,150.0,0.00012928,2]
[399904946,1766841824821,150.0,0.00014104,2]
[399904947,1766841889837,150.0,0.00012923,2]
[399904948,1766841935155,-626.0,0.000144,2]
[399904949,1766841935181,-153.34,0.000144,2]
[399904950,1766841935224,-201.85547352,0.00014475,2]
[399904951,1766841935250,-153.34,0.000161,2]
[399904952,1766841935274,-4064.30331232,0.00016108,2]
[399904953,1766841935299,-195.32264469,0.00016391,2]
[399904954,1766841935322,-238.18945875,0.00016475,2]
[399904955,1766841935347,-300.0,0.00016489,2]
[399904956,1766841935369,-498.16349177,0.00016489,2]
[399904957,1766841952116,-197.7851385,0.00016489,2]
[399904961,1766842031102,-197.33233568,0.0001455,2]
[399904962,1766842031123,-200.0,0.00016488,2]
[399904963,1766842031147,-500.0,0.00016489,2]
[399904964,1766842031170,-358.11142545,0.00016489,2]
[399904965,1766842031193,-500.0,0.00016489,2]
[399904966,1766842031216,-630.29124883,0.00016489,2]
[399904967,1766842031239,-500.0,0.00016489,2]
[399904968,1766842031261,-500.0,0.00016489,2]
[399904969,1766842031284,-297.23626359,0.00016489,2]
[399904971,1766842051109,-153.36,0.000144,2]
[399904972,1766842051133,-202.76373641,0.00016489,2]
[399904973,1766842051156,-500.0,0.00016489,2]
[399904974,1766842051178,-500.0,0.00016489,2]
[399904975,1766842051199,-354.90597194,0.00016489,2]
[399904980,1766842149103,-1200.0,0.00016488,2]
[399904981,1766842149124,-300.0,0.00016488,2]
[399904982,1766842149144,-500.0,0.00016489,2]
[399904983,1766842149164,-228.46529952,0.00016489,2]
[399904984,1766842149187,-500.0,0.00016489,2]
[399904985,1766842149208,-649.42215803,0.00016489,2]
[399904986,1766842149232,-290.57890227,0.00016489,2]
[399904987,1766842149254,-500.0,0.00016489,2]
[399904988,1766842149275,-500.0,0.00016489,2]
[399904989,1766842149298,-145.09402806,0.00016489,2]
[399904990,1766842149320,-500.0,0.00016489,2]
[399904991,1766842149341,-500.0,0.00016489,2]
[399904992,1766842149364,-500.0,0.00016489,2]
[399904993,1766842149385,-500.0,0.00016489,2]
[399904994,1766842149406,-500.0,0.00016489,2]
[399904995,1766842149428,-500.0,0.00016489,2]
[399904996,1766842149449,-629.5699051,0.00016489,2]
[399904997,1766842149470,-500.0,0.00016489,2]
[399904998,1766842149490,-500.0,0.00016489,2]
[399904999,1766842149510,-500.0,0.00016489,2]
[399905000,1766842149530,-191.33944072,0.00016489,2]
[399905001,1766842166600,153.34,0.000144,2]
[399905002,1766842207157,250.59,0.000144,2]
[399905003,1766842207545,250.59,0.000147,2]
[399905004,1766842207979,250.59,0.00015,2]
[399905005,1766842208364,250.59,0.000154,2]
[399905023,1766842231908,-250.59,0.000157,2]
[399905025,1766842231918,-250.59,0.00016,2]
[399905027,1766842231928,-250.59,0.000163,2]
[399905029,1766842231937,-308.66055928,0.00016489,2]
[399905031,1766842231947,-500.0,0.00016489,2]
[399905033,1766842231957,-500.0,0.00016489,2]
[399905035,1766842231967,-660.0,0.00016489,2]
[399905037,1766842231977,-232.8521561,0.0001655,2]
[399905039,1766842231986,-250.59,0.000166,2]
[399905040,1766842231997,-500.0,0.00016999,2]
[399905043,1766842232007,-300.0,0.00016999,2]
[399905045,1766842232017,-300.0,0.00016999,2]
[399905047,1766842232027,-1200.0,0.00016999,2]
[399905049,1766842232036,-903.61881022,0.00017,7]
[399905083,1766842238030,-370.60755416,0.00017,7]
[399905084,1766842238087,-17134.164281,0.00017,7]
[399905085,1766842238097,-250.59,0.00017,2]
[399905086,1766842238108,-250.59,0.000173,2]
[399905087,1766842238118,-250.59,0.000176,2]
[399905088,1766842238128,-169.7743826,0.00017632,2]
[399905089,1766842238137,-462.2160284,0.0001785,2]
[399905090,1766842238148,-377.292822,0.0001785,2]
[399905091,1766842238158,-32130.23613583,0.0001785,2]
[399905092,1766842238171,-1052.97791845,0.0001785,2]
[399905093,1766842238181,-250.59,0.000179,2]
[399905094,1766842238191,-170.90731413,0.00017918,2]
[399905095,1766842238200,-773.0,0.00018018,2]
[399905096,1766842238210,-250.59,0.000182,2]
[399905097,1766842238221,-157.44570693,0.00018499,2]
[399905098,1766842238231,-207.93072702,0.00018499,2]
[399905099,1766842238241,-363.06269831,0.00018499,2]
[399905100,1766842238251,-629.78282772,0.00018499,2]
[399905101,1766842238260,-340.2944287,0.00018499,2]
[399905102,1766842238271,-268.37197652,0.0001855,2]
[399905103,1766842238280,-420.0,0.00018567,2]
[399905104,1766842238290,-250.59,0.000186,2]
[399905105,1766842238300,-984.0,0.00018659,2]
[399905106,1766842238309,-250.59,0.000189,2]
[399905107,1766842238319,-1037.2893633,0.00019038,7]
[399905108,1766842238329,-448.38795311,0.00019038,7]
[399905109,1766842238338,-250.59,0.000192,2]
[399905110,1766842238348,-416.0,0.00019382,2]
[399905111,1766842238357,-1415.594351,0.00019497,2]
[399905112,1766842238367,-250.59,0.000195,2]
[399905113,1766842238376,-611.91744169,0.00019514,2]
[399905114,1766842238386,-500.0,0.00019546,2]
[399905115,1766842238396,-241.20055938,0.00019549,2]
[399905116,1766842238406,-1041.66666667,0.00019574,2]
[399905117,1766842238416,-290.487458,0.00019648,2]
[399905118,1766842238426,-202.226533,0.00019648,2]
[399905119,1766842238436,-151.943509,0.00019648,2]
[399905120,1766842238446,-500.0,0.00019648,2]
[399905121,1766842238455,-500.0,0.00019648,2]
[399905122,1766842238465,-500.0,0.00019648,2]
[399905123,1766842238474,-500.0,0.00019648,2]
[399905124,1766842238485,-500.0,0.00019648,2]
[399905125,1766842238495,-500.0,0.00019648,2]
[399905126,1766842238504,-572.22674,0.00019648,2]
[399905127,1766842238513,-151.0,0.00019648,2]
[399905128,1766842238523,-151.0,0.00019648,2]
[399905129,1766842238533,-249.200364,0.00019648,2]
[399905130,1766842238543,-908.28414327,0.00019649,2]
[399905131,1766842238553,-174.71831514,0.00019728,2]
[399905132,1766842238568,-85.4395545,0.00019878,2]
[399905133,1766842238580,-376.7764739,0.00019878,2]
[399905134,1766842238591,-250.59,0.000199,2]
[399905135,1766842238600,-150.0,0.0002,10]
[399905136,1766842238610,-200.59407929,0.0002,2]
[399905137,1766842238620,-151.0,0.0002,2]
[399905138,1766842238631,-168.0,0.00020027,2]
[399905139,1766842238641,-402.74,0.000201,2]
[399905140,1766842238651,-170.9073141,0.00020144,2]
[399905141,1766842238661,-243.473356,0.00020187,2]
[399905142,1766842238671,-250.59,0.000202,2]
[399905143,1766842238681,-217.0,0.00020279,2]
[399905144,1766842238691,-250.59,0.000205,2]
[399905145,1766842238701,-303.89179694,0.0002055,2]
[399905146,1766842238711,-210.94000825,0.00020767,2]
[399905147,1766842238727,-250.59,0.000208,2]
[399905148,1766842238741,-74.35328715,0.00021,7]
[399905149,1766842238754,-2541.83438832,0.00021,7]
[399905151,1766842240272,-500.0,0.00017849,2]
[399905152,1766842240283,-553.40523159,0.00017849,2]
[399905153,1766842240294,-159.92570967,0.00017849,2]
[399905154,1766842240305,-500.0,0.00017849,2]
[399905155,1766842240315,-504.59551063,0.00017849,2]
[399905156,1766842240325,-3828.91072071,0.00021,7]
[399905176,1766842245050,-476.59,0.00021,7]
[399905177,1766842245396,-392.46034728,0.00021,7]
[399905182,1766842245986,-1172.50797802,0.00021,7]
[399905183,1766842246000,-4692.8644744,0.00021,7]
[399905186,1766842246295,-21.9761265,0.00021,7]
[399905187,1766842246307,-4775.93370931,0.00021,7]
[399905188,1766842266868,500.0,0.00013273,2]
[399905189,1766842284661,500.0,0.00013273,2]
[399905190,1766842284934,500.0,0.00013273,2]
[399905191,1766842290302,144.67127011,0.0001,2]
[399905192,1766842290324,133.21872989,0.0001,2]
[399905193,1766842327228,500.0,0.00013273,2]
[399905194,1766842337174,195.9051927,0.00013273,2]
[399905195,1766842337208,304.0948073,0.00013273,2]
[399905196,1766842387467,500.0,0.00030134,120]
[399905197,1766842387736,500.0,0.00030134,120]
[399905198,1766842387989,500.0,0.00030134,120]
[399905199,1766842388222,601.06,0.00030134,120]
[399905200,1766842466537,150.0,0.00013165,2]
[399905201,1766842466990,150.0,0.00014362,2]
[399905203,1766842507463,500.0,0.00013273,2]
[399905204,1766842536773,150.0,0.00013516,2]
[399905205,1766842605134,150.0,0.000131,2]
[399905206,1766842605657,150.0,0.00014291,2]
[399905207,1766842658995,5000.0,0.0001439,2]
[399905208,1766842672639,150.0,0.00012914,2]
[399905209,1766842673097,150.0,0.00014088,2]
[399905210,1766842683339,2313.70451209,0.0001439,2]
[399905211,1766842711556,250.02,0.00030137,120]
[399905212,1766842729608,900.0,0.0001439,2]
[399905213,1766842733721,250.0,0.00030137,120]
[399905214,1766842739163,150.0,0.00013039,2]
[399905215,1766842747318,500.0,0.00013273,2]
[399905219,1766842867152,500.0,0.00013273,2]
[399905220,1766842915072,2500.0,0.0001439,2]
[399905221,1766842938955,393.09886726,0.0001439,2]
[399905222,1766843124773,150.0,0.00012859,2]
[399905223,1766843125101,150.0,0.00014028,2]
[399905224,1766843231143,-626.0,0.000144,2]